Workbook

Sheet Q3 CF
B2: CF From Ops | D2: pts | F2: Check
B3: NI | C3: ='[1]Q3 IS '!D20 -> 1,560 | D3: 0.5 | F3: Change in A/D | G3: =C6+G9 -> 110
F4: Change in RE | G4: ='[1]Q3 IS '!D20-'[1]Q3 BS'!D20-1000 -> 60
B5: Non-Cash: | F5: Change in PP&E | G5: ='[1]Q3 BS'!D11-'[1]Q3 BS'!E11 -> 800
B6: Depreciation | C6: ='[1]Q3 IS '!D9 -> 210 | D6: 2
B7: Bad Debt | C7: ='[1]Q3 IS '!D8 -> 300 | D7: 2 | F7: Events
B8: Gain on sale of Property | C8: =-'[1]Q3 IS '!D16 -> -400 | D8: 2 | F8: BV of Property Sold | G8: 400
F9: A/D on Property Sold | G9: -100
B10: Changes in BS: | F10: 2012 Dividends Declared | G10: 500
B11: A/R | C11: ='[1]Q3 BS'!E5-'[1]Q3 BS'!D5 -> -1,700 | D11: 2 | F11: 2011 Dividends Paid | G11: ='[1]Q3 IS '!D20-'Q3 CF'!G10-('[1]Q3 BS'!D33-'[1]Q3 BS'!E33) -> 1,000 | H11: plug | J11: 20
B12: Inventory | C12: ='[1]Q3 BS'!E7-'[1]Q3 BS'!D7 -> -400 | D12: 2 | J12: 30
B13: A/P | C13: ='[1]Q3 BS'!D19-'[1]Q3 BS'!E19 -> 330 | D13: 2 | J13: 19.5
B14: Other Current Liab | C14: ='[1]Q3 BS'!D21-'[1]Q3 BS'!E21 -> 400 | D14: 2 | J14: 8
B15: CF from Ops | C15: =SUM(C3:C14) -> 300
B17: CF From Investing | F17: =100/1020 -> 0.09803921569
B18: Cash from Property Sale | C18: =G8+G9+'[1]Q3 IS '!D16 -> 700 | D18: 2 | F18: =100/520 -> 0.1923076923
B19: Purchase of PP&E | C19: ='[1]Q3 BS'!E11-'[1]Q3 BS'!D11-G8 -> -1,200 | D19: 2 | F19: =520/1020 -> 0.5098039216
B20: CF from Investing | C20: =SUM(C18:C19) -> -500 | F20: =80/980 -> 0.08163265306
F21: =80/480 -> 0.1666666667
B22: CF From Financing | F22: =500/980 -> 0.5102040816
B23: Div Paid | C23: =-G11 -> -1,000 | D23: 2
B24: Loan | C24: 2600 | D24: 2
B25: Cash from Stock | C25: 2000 | D25: 2
B26: CF from Financing | C26: =SUM(C23:C25) -> 3600
B28: Net Change in Cash | C28: =C15+C20+C26 -> 3,400 | D28: 0.5
B29: Beg Cash Balance | C29: ='[1]Q3 BS'!E4 -> 4,600
B30: Ending Cash Balance | C30: ='[1]Q3 BS'!D4 -> 8,000
B31: Check | C31: =C28-(C30-C29) -> 0 | D31: =SUM(D3:D30) -> 25
